fUST/lending_fUST_20250112
["ID","MTS","AMOUNT","RATE_DAILY","PERIOD"]
[348636647,1736693441343,-500.0,0.00016041,2]
[348636648,1736693441355,-225.31149674,0.00016043,2]
[348636649,1736693441368,-500.0,0.000161,2]
[348636650,1736693441379,-151.0,0.00016258,2]
[348636651,1736693441392,-500.0,0.00016438,2]
[348636652,1736693441404,-500.0,0.00016438,2]
[348636653,1736693441416,-336.91173986,0.00016438,2]
[348636654,1736693441429,-531.6540489,0.00016535,2]
[348636655,1736693441442,-1000.0,0.00016648,2]
[348636656,1736693441454,-15633.535924,0.00016668,2]
[348636657,1736693441464,-1069.16558851,0.00017045,2]
[348636658,1736693441475,-499.0,0.00017534,2]
[348636659,1736693441485,-420.0,0.00017536,2]
[348636660,1736693441495,-726.9167269,0.00017549,2]
[348636661,1736693441506,-1500.0,0.0001765,2]
[348636662,1736693441516,-24900.0,0.00017698,2]
[348636663,1736693441528,-1069.16558851,0.00018147,2]
[348636664,1736693441541,-500.0,0.0001851,2]
[348636665,1736693441553,-500.0,0.000188,2]
[348636666,1736693441565,-1493.55324591,0.00018947,2]
[348636667,1736693441575,-500.225,0.00019,2]
[348636668,1736693441585,-587.0,0.00019172,2]
[348636669,1736693441596,-500.0,0.00019173,2]
[348636670,1736693441606,-500.0,0.00019173,2]
[348636671,1736693441618,-500.0,0.00019177,2]
[348636672,1736693441630,-201.99447317,0.00019177,2]
[348636673,1736693441641,-163.96102696,0.00019177,2]
[348636674,1736693441652,-218.93029853,0.00019177,2]
[348636675,1736693441663,-500.0,0.00019178,2]
[348636676,1736693441673,-500.0,0.00019178,2]
[348636677,1736693441683,-500.0,0.00019178,2]
[348636678,1736693441692,-500.0,0.00019178,2]
[348636679,1736693441703,-500.0,0.00019178,2]
[348636680,1736693441713,-500.0,0.00019178,2]
[348636681,1736693441723,-500.0,0.00019178,2]
[348636682,1736693441735,-500.0,0.00019178,2]
[348636683,1736693441746,-500.0,0.00019178,2]
[348636684,1736693441756,-500.0,0.00019178,2]
[348636685,1736693441769,-500.0,0.00019178,2]
[348636686,1736693441779,-500.0,0.00019178,2]
[348636687,1736693441791,-174.46961517,0.00019178,2]
[348636688,1736693441862,-325.53038483,0.00019178,2]
[348636689,1736693441873,-510.70121829,0.00019178,2]
[348636690,1736693441883,-500.0,0.00019178,2]
[348636692,1736693441894,-500.0,0.00019178,2]
[348636694,1736693441906,-500.0,0.00019178,7]
[348636696,1736693441917,-551.06,0.00019178,2]
[348636698,1736693441927,-500.0,0.00019178,2]
[348636700,1736693441937,-511.44047377,0.00019178,2]
[348636702,1736693441948,-504.21121599,0.00019178,2]
[348636704,1736693441958,-500.0,0.00019178,2]
[348636706,1736693441969,-500.0,0.00019178,2]
[348636708,1736693441980,-500.0,0.00019178,2]
[348636711,1736693441993,-554.83413268,0.00019178,2]
[348636713,1736693442004,-498.40191756,0.00019178,2]
[348636715,1736693442014,-500.0,0.00019178,2]
[348636717,1736693442024,-500.0,0.00019178,2]
[348636719,1736693442035,-500.0,0.00019178,2]
[348636721,1736693442045,-500.0,0.00019178,2]
[348636723,1736693442056,-500.0,0.00019178,2]
[348636726,1736693442067,-237.69968771,0.00019178,2]
[348636728,1736693442077,-500.0,0.00019178,2]
[348636730,1736693442088,-500.0,0.00019178,2]
[348636732,1736693442098,-500.0,0.00019178,2]
[348636734,1736693442109,-500.0,0.00019178,2]
[348636736,1736693442119,-500.0,0.00019178,2]
[348636739,1736693442130,-500.0,0.00019178,2]
[348636741,1736693442140,-500.0,0.00019178,2]
[348636743,1736693442151,-500.0,0.00019178,2]
[348636745,1736693442163,-500.0,0.00019178,2]
[348636747,1736693442173,-500.0,0.00019178,2]
[348636749,1736693442184,-500.0,0.00019178,2]
[348636752,1736693442194,-500.0,0.00019178,2]
[348636754,1736693442205,-500.0,0.00019178,2]
[348636756,1736693442216,-687.8,0.00019178,2]
[348636758,1736693442226,-500.0,0.00019178,2]
[348636760,1736693442237,-500.0,0.00019178,2]
[348636772,1736693442376,-500.0,0.00019178,2]
[348636773,1736693442390,-500.0,0.00019178,2]
[348636774,1736693442400,-500.0,0.00019178,2]
[348636775,1736693442409,-500.0,0.00019178,2]
[348636776,1736693442418,-500.0,0.00019178,2]
[348636777,1736693442428,-500.0,0.00019178,2]
[348636778,1736693442437,-500.0,0.00019178,2]
[348636779,1736693442446,-500.0,0.00019178,2]
[348636780,1736693442456,-309.94926545,0.00019178,2]
[348636781,1736693442465,-500.0,0.00019178,2]
[348636782,1736693442474,-500.0,0.00019178,2]
[348636783,1736693442483,-500.0,0.00019178,2]
[348636784,1736693442493,-1801.04,0.00019178,2]
[348636785,1736693442502,-639.8883854,0.00019178,2]
[348636786,1736693442511,-589.86,0.00019178,2]
[348636787,1736693442521,-500.0,0.00019178,2]
[348636788,1736693442530,-616.0,0.00019178,2]
[348636789,1736693442539,-500.0,0.00019178,2]
[348636790,1736693442549,-500.0,0.00019178,2]
[348636791,1736693442558,-500.0,0.00019178,2]
[348636792,1736693442567,-500.0,0.00019178,2]
[348636793,1736693442576,-500.0,0.00019178,2]
[348636794,1736693442585,-500.0,0.00019178,2]
[348636795,1736693442594,-500.0,0.00019178,2]
[348636796,1736693442603,-500.0,0.00019178,2]
[348636797,1736693442613,-500.0,0.00019178,2]
[348636798,1736693442625,-500.0,0.00019178,2]
[348636799,1736693442635,-257.00873844,0.00019178,2]
[348636800,1736693442644,-340.1920214,0.00019178,2]
[348636801,1736693442654,-500.0,0.00019178,2]
[348636802,1736693442663,-500.0,0.00019178,2]
[348636803,1736693442672,-638.74,0.00019178,2]
[348636804,1736693442681,-500.0,0.00019178,2]
[348636805,1736693442691,-500.0,0.00019178,2]
[348636806,1736693442701,-500.0,0.00019178,2]
[348636807,1736693442710,-3908.33,0.00019178,2]
[348636808,1736693442719,-571.42,0.00019178,2]
[348636809,1736693442728,-500.0,0.00019178,2]
[348636811,1736693442739,-500.0,0.00019178,2]
[348636812,1736693442748,-500.0,0.00019178,2]
[348636814,1736693442757,-500.0,0.00019178,2]
[348636815,1736693442767,-500.0,0.00019178,2]
[348636816,1736693442776,-209.55889495,0.00019178,2]
[348636817,1736693442785,-500.0,0.00019178,2]
[348636818,1736693442794,-500.0,0.00019178,2]
[348636820,1736693442803,-500.0,0.00019178,2]
[348636821,1736693442812,-500.0,0.00019178,2]
[348636823,1736693442821,-501.91060382,0.00019178,2]
[348636825,1736693442830,-602.71,0.00019178,2]
[348636826,1736693442839,-428.26973915,0.00019178,2]
[348636828,1736693442848,-500.0,0.00019178,2]
[348636829,1736693442857,-501.40779026,0.00019178,2]
[348636831,1736693442867,-500.0,0.00019178,2]
[348636832,1736693442876,-500.0,0.00019178,2]
[348636833,1736693442885,-500.0,0.00019178,2]
[348636834,1736693442894,-500.0,0.00019178,2]
[348636835,1736693442904,-5002.95,0.00019178,2]
[348636836,1736693442914,-500.0,0.00019178,2]
[348636837,1736693442923,-21204.76,0.00019178,2]
[348636839,1736693442932,-500.0,0.00019178,2]
[348636840,1736693442941,-500.0,0.00019178,2]
[348636841,1736693442949,-500.0,0.00019178,2]
[348636842,1736693442959,-500.0,0.00019178,2]
[348636843,1736693442968,-500.0,0.00019178,2]
[348636844,1736693442979,-500.0,0.00019178,2]
[348636845,1736693442990,-500.0,0.00019178,2]
[348636846,1736693442999,-500.0,0.00019178,2]
[348636847,1736693443008,-500.0,0.00019178,2]
[348636848,1736693443018,-500.0,0.00019178,2]
[348636849,1736693443029,-512.18044931,0.00019178,2]
[348636850,1736693443038,-500.0,0.00019178,2]
[348636851,1736693443047,-999.43,0.00019178,2]
[348636852,1736693443057,-556.08416536,0.00019178,2]
[348636853,1736693443067,-500.0,0.00019178,2]
[348636854,1736693443076,-500.0,0.00019178,2]
[348636856,1736693443086,-503.94014462,0.00019178,2]
[348636857,1736693443095,-4377.06,0.00019178,2]
[348636859,1736693443104,-897.34,0.00019178,2]
[348636860,1736693443113,-500.0,0.00019178,2]
[348636862,1736693443124,-513.32633649,0.00019178,2]
[348636863,1736693443132,-722.35,0.00019178,2]
[348636865,1736693443141,-500.0,0.00019178,2]
[348636866,1736693443150,-3040.76,0.00019178,2]
[348636867,1736693443160,-500.0,0.00019178,2]
[348636868,1736693443169,-1064.86,0.00019178,2]
[348636869,1736693443178,-500.0,0.00019178,2]
[348636870,1736693443187,-500.0,0.00019178,2]
[348636871,1736693443196,-889.09,0.00019178,2]
[348636872,1736693443205,-500.0,0.00019178,2]
[348636873,1736693443214,-500.0,0.00019178,2]
[348636874,1736693443223,-500.0,0.00019178,2]
[348636875,1736693443232,-500.0,0.00019178,2]
[348636876,1736693443241,-500.0,0.00019178,2]
[348636877,1736693443250,-507.93396735,0.00019178,2]
[348636878,1736693443259,-500.0,0.00019178,2]
[348636879,1736693443268,-500.5797417,0.00019178,2]
[348636880,1736693443279,-500.0,0.00019178,2]
[348636881,1736693443287,-500.0,0.00019178,2]
[348636882,1736693443296,-500.0,0.00019178,2]
[348636883,1736693443305,-500.0,0.00019178,2]
[348636884,1736693443314,-500.0,0.00019178,2]
[348636887,1736693443324,-500.0,0.00019178,2]
[348636888,1736693443333,-500.0,0.00019178,2]
[348636889,1736693443343,-500.0,0.00019178,2]
[348636890,1736693443352,-500.0,0.00019178,2]
[348636891,1736693443362,-500.0,0.00019178,2]
[348636892,1736693443372,-500.81962032,0.00019178,2]
[348636893,1736693443381,-500.0,0.00019178,2]
[348636894,1736693443391,-672.54,0.00019178,2]
[348636895,1736693443400,-504.16855487,0.00019178,2]
[348636896,1736693443409,-500.0,0.00019178,2]
[348636898,1736693443419,-500.0,0.00019178,2]
[348636899,1736693443428,-500.0,0.00019178,2]
[348636901,1736693443438,-500.0,0.00019178,2]
[348636903,1736693443447,-500.0,0.00019178,2]
[348636904,1736693443457,-503.03509134,0.00019178,2]
[348636906,1736693443466,-500.0,0.00019178,2]
[348636908,1736693443476,-500.0,0.00019178,2]
[348636910,1736693443485,-863.78,0.00019178,2]
[348636912,1736693443496,-500.0,0.00019178,2]
[348636913,1736693443505,-500.0,0.00019178,2]
[348636915,1736693443515,-500.0,0.00019178,2]
[348636917,1736693443525,-500.75194839,0.00019178,2]
[348636918,1736693443534,-500.0,0.00019178,2]
[348636919,1736693443543,-500.0,0.00019178,2]
[348636920,1736693443553,-1698.68,0.00019178,2]
[348636921,1736693443562,-500.0,0.00019178,2]
[348636923,1736693443572,-500.0,0.00019178,2]
[348636924,1736693443581,-500.0,0.00019178,2]
[348636926,1736693443590,-565.11,0.00019178,2]
[348636928,1736693443599,-500.0,0.00019178,2]
[348636929,1736693443609,-500.0,0.00019178,2]
[348636931,1736693443620,-500.0,0.00019178,2]
[348636932,1736693443629,-500.0,0.00019178,2]
[348636933,1736693443638,-995.08,0.00019178,2]
[348636934,1736693443648,-2010.18,0.00019178,2]
[348636935,1736693443658,-500.0,0.00019178,2]
[348636936,1736693443668,-500.0,0.00019178,2]
[348636938,1736693443678,-533.01,0.00019178,2]
[348636939,1736693443687,-502.23272226,0.00019178,2]
[348636940,1736693443696,-546.01176375,0.00019178,2]
[348636941,1736693443706,-500.0,0.00019178,2]
[348636942,1736693443716,-797.16,0.00019178,2]
[348636943,1736693443725,-889.62,0.00019178,2]
[348636944,1736693443736,-760.71,0.00019178,2]
[348636945,1736693443745,-938.43,0.00019178,2]
[348636946,1736693443755,-674.5,0.00019178,2]
[348636947,1736693443765,-500.0,0.00019178,2]
[348636948,1736693443774,-500.0,0.00019178,2]
[348636949,1736693443784,-548.88,0.00019178,2]
[348636950,1736693443794,-500.0,0.00019178,2]
[348636951,1736693443803,-500.0,0.00019178,2]
[348636952,1736693443812,-3246.39,0.00019178,2]
[348636953,1736693443822,-500.0,0.00019178,2]
[348636954,1736693443831,-2049.45,0.00019178,2]
[348636955,1736693443840,-500.0,0.00019178,2]
[348636956,1736693443850,-500.0,0.00019178,2]
[348636957,1736693443860,-500.8055289,0.00019178,2]
[348636958,1736693443869,-967.85,0.00019178,2]
[348636959,1736693443878,-500.0,0.00019178,2]
[348636960,1736693443887,-500.0,0.00019178,2]
[348636961,1736693443898,-500.0,0.00019178,2]
[348636962,1736693443907,-500.0,0.00019178,2]
[348636963,1736693443916,-500.0,0.00019178,2]
[348636964,1736693443926,-500.0,0.00019178,2]
[348636965,1736693443936,-314.85119759,0.00019188,2]
[348636966,1736693443946,-1069.16558851,0.0001925,2]
[348636967,1736693443956,-3000.0,0.00019352,2]
[348636968,1736693443965,-1186.665,0.00019425,2]
[348636969,1736693443974,-535.0,0.00019425,2]
[348636970,1736693443983,-1601.296,0.00019425,2]
[348636971,1736693443995,-394.0,0.00019425,2]
[348636972,1736693444005,-183.838,0.00019425,2]
[348636973,1736693444014,-500.0,0.00019452,3]
[348636974,1736693444024,-551.06,0.00019452,3]
[348636975,1736693444033,-500.0,0.00019452,3]
[348636976,1736693444042,-500.0,0.00019452,3]
[348636977,1736693444052,-500.0,0.00019452,3]
[348636978,1736693444061,-500.0,0.00019452,3]
[348636979,1736693444070,-155.3,0.00019452,3]
[348636980,1736693444080,-500.0,0.00019452,3]
[348636981,1736693444090,-500.0,0.00019452,3]
[348636982,1736693444099,-500.0,0.00019452,3]
[348636983,1736693444108,-500.0,0.00019452,3]
[348636984,1736693444119,-687.8,0.00019452,3]
[348636985,1736693444128,-500.0,0.00019452,3]
[348636986,1736693444137,-500.0,0.00019452,3]
[348636987,1736693444147,-500.0,0.00019452,3]
[348636988,1736693444156,-1801.04,0.00019452,3]
[348636989,1736693444165,-589.86,0.00019452,3]
[348636990,1736693444174,-500.0,0.00019452,3]
[348636991,1736693444184,-616.0,0.00019452,3]
[348636992,1736693444193,-500.0,0.00019452,3]
[348636993,1736693444202,-500.0,0.00019452,3]
[348636994,1736693444211,-500.0,0.00019452,3]
[348636995,1736693444220,-500.0,0.00019452,3]
[348636996,1736693444230,-500.0,0.00019452,3]
[348636997,1736693444239,-500.0,0.00019452,3]
[348636998,1736693444248,-638.74,0.00019452,3]
[348636999,1736693444257,-571.42,0.00019452,3]
[348637000,1736693444267,-3908.33,0.00019452,3]
[348637001,1736693444277,-500.0,0.00019452,3]
[348637002,1736693444287,-500.0,0.00019452,3]
[348637003,1736693444297,-500.0,0.00019452,3]
[348637004,1736693444306,-500.0,0.00019452,3]
[348637005,1736693444315,-500.0,0.00019452,3]
[348637006,1736693444325,-5002.95,0.00019452,3]
[348637007,1736693444334,-21204.76,0.00019452,3]
[348637008,1736693444344,-500.0,0.00019452,3]
[348637009,1736693444354,-500.0,0.00019452,3]
[348637010,1736693444364,-500.0,0.00019452,3]
[348637011,1736693444374,-500.0,0.00019452,3]
[348637012,1736693444383,-500.0,0.00019452,3]
[348637013,1736693444393,-999.43,0.00019452,3]
[348637014,1736693444402,-4377.06,0.00019452,2]
[348637015,1736693444412,-897.34,0.00019452,3]
[348637016,1736693444421,-722.35,0.00019452,3]
[348637017,1736693444430,-3040.76,0.00019452,3]
[348637018,1736693444440,-1064.86,0.00019452,3]
[348637019,1736693444449,-889.09,0.00019452,3]
[348637020,1736693444459,-500.0,0.00019452,3]
[348637021,1736693444468,-500.0,0.00019452,3]
[348637022,1736693444478,-500.0,0.00019452,3]
[348637023,1736693444487,-542.89325804,0.00019452,3]
[348637024,1736693444497,-500.0,0.00019452,3]
[348637025,1736693444507,-672.54,0.00019452,3]
[348637026,1736693444518,-500.0,0.00019452,3]
[348637027,1736693444527,-500.0,0.00019452,3]
[348637028,1736693444536,-863.78,0.00019452,3]
[348637029,1736693444545,-500.0,0.00019452,3]
[348637030,1736693444555,-500.0,0.00019452,3]
[348637031,1736693444565,-1698.68,0.00019452,3]
[348637032,1736693444574,-500.0,0.00019452,3]
[348637033,1736693444584,-565.11,0.00019452,3]
[348637034,1736693444593,-500.0,0.00019452,3]
[348637035,1736693444602,-500.0,0.00019452,3]
[348637036,1736693444612,-995.08,0.00019452,3]
[348637037,1736693444621,-2010.18,0.00019452,3]
[348637038,1736693444631,-533.01,0.00019452,3]
[348637039,1736693444640,-500.0,0.00019452,3]
[348637040,1736693444650,-797.16,0.00019452,3]
[348637041,1736693444659,-889.62,0.00019452,3]
[348637042,1736693444668,-760.71,0.00019452,3]
[348637043,1736693444678,-938.43,0.00019452,3]
[348637044,1736693444687,-674.5,0.00019452,3]
[348637045,1736693444697,-548.88,0.00019452,3]
[348637046,1736693444706,-533.26048215,0.00019452,3]
[348637047,1736693444716,-3246.39,0.00019452,3]
[348637048,1736693444726,-2049.45,0.00019452,3]
[348637049,1736693444736,-967.85,0.00019452,3]
[348637050,1736693444745,-500.0,0.00019452,3]
[348637051,1736693444755,-500.0,0.00019452,3]
[348637052,1736693444764,-168.866,0.00019478,2]
[348637053,1736693444774,-1000.0,0.00019721,2]
[348637054,1736693444783,-1118.07226204,0.00019721,2]
[348637055,1736693444793,-500.0,0.00019726,3]
[348637056,1736693444803,-551.06,0.00019726,3]
[348637057,1736693444812,-500.0,0.00019726,3]
[348637058,1736693444822,-500.0,0.00019726,3]
[348637059,1736693444832,-500.0,0.00019726,3]
[348637060,1736693444841,-500.0,0.00019726,3]
[348637061,1736693444850,-500.0,0.00019726,3]
[348637062,1736693444860,-500.0,0.00019726,3]
[348637063,1736693444870,-687.8,0.00019726,3]
[348637064,1736693444879,-500.0,0.00019726,3]
[348637065,1736693444888,-1801.04,0.00019726,3]
[348637066,1736693444897,-589.86,0.00019726,3]
[348637067,1736693444907,-500.0,0.00019726,3]
[348637068,1736693444916,-616.0,0.00019726,3]
[348637069,1736693444926,-429.22434841,0.00019726,3]
[348637070,1736693444935,-500.0,0.00019726,3]
[348637071,1736693444944,-500.0,0.00019726,3]
[348637072,1736693444954,-500.0,0.00019726,3]
[348637073,1736693444963,-638.74,0.00019726,3]
[348637074,1736693444973,-571.42,0.00019726,3]
[348637075,1736693444983,-3908.33,0.00019726,3]
[348637076,1736693444995,-151.0,0.00019726,2]
[348637077,1736693445005,-151.0,0.00019726,2]
[348637078,1736693445014,-500.0,0.00019726,3]
[348637079,1736693445025,-500.0,0.00019726,3]
[348637080,1736693445036,-500.0,0.00019726,3]
[348637081,1736693445045,-500.0,0.00019726,3]
[348637082,1736693445055,-500.0,0.00019726,3]
[348637083,1736693445066,-5002.95,0.00019726,3]
[348637084,1736693445078,-21204.76,0.00019726,3]
[348637085,1736693445087,-500.0,0.00019726,3]
[348637086,1736693445097,-500.0,0.00019726,3]
[348637087,1736693445106,-500.0,0.00019726,3]
[348637088,1736693445116,-500.0,0.00019726,3]
[348637089,1736693445126,-500.0,0.00019726,3]
[348637090,1736693445136,-999.43,0.00019726,3]
[348637091,1736693445146,-4377.06,0.00019726,2]
[348637092,1736693445158,-897.34,0.00019726,3]
[348637093,1736693445261,-722.35,0.00019726,3]
[348637094,1736693445271,-3040.76,0.00019726,3]
[348637095,1736693445281,-1064.86,0.00019726,3]
[348637096,1736693445290,-151.0,0.00019726,2]
[348637097,1736693445299,-270.63408,0.00019726,2]
[348637098,1736693445309,-889.09,0.00019726,3]
[348637099,1736693445318,-500.0,0.00019726,3]
[348637100,1736693445327,-500.0,0.00019726,3]
[348637101,1736693445340,-500.0,0.00019726,3]
[348637102,1736693445350,-500.0,0.00019726,3]
[348637103,1736693445359,-672.54,0.00019726,3]
[348637104,1736693445368,-601.65342355,0.00019726,3]
[348637105,1736693445378,-500.0,0.00019726,3]
[348637106,1736693445387,-863.78,0.00019726,3]
[348637107,1736693445397,-381.82984959,0.00019726,3]
[348637108,1736693445407,-500.0,0.00019726,3]
[348637109,1736693445416,-1698.68,0.00019726,3]
[348637110,1736693445426,-500.0,0.00019726,3]
[348637111,1736693445435,-565.11,0.00019726,3]
[348637112,1736693445444,-500.0,0.00019726,3]
[348637113,1736693445453,-500.0,0.00019726,3]
[348637114,1736693445463,-995.08,0.00019726,3]
[348637115,1736693445472,-2010.18,0.00019726,3]
[348637116,1736693445481,-533.01,0.00019726,3]
[348637117,1736693445494,-500.0,0.00019726,3]
[348637118,1736693445504,-797.16,0.00019726,3]
[348637119,1736693445513,-889.62,0.00019726,3]
[348637120,1736693445522,-760.71,0.00019726,3]
[348637121,1736693445532,-938.43,0.00019726,3]
[348637122,1736693445541,-674.5,0.00019726,3]
[348637123,1736693445550,-548.88,0.00019726,3]
[348637124,1736693445559,-2049.45,0.00019726,3]
[348637125,1736693445569,-3246.39,0.00019726,3]
[348637126,1736693445578,-967.85,0.00019726,3]
[348637127,1736693445588,-500.0,0.00019726,3]
[348637128,1736693445597,-500.0,0.00019726,3]
[348637129,1736693445607,-500.0,0.00019773,2]
[348637130,1736693445616,-500.0,0.00019773,2]
[348637131,1736693445627,-237.9316884,0.00019787,2]
[348637132,1736693445637,-151.0,0.000198,2]
[348637133,1736693445646,-619.0,0.000198,2]
[348637134,1736693445656,-151.0,0.000198,2]
[348637135,1736693445665,-157.01,0.00019841,2]
[348637136,1736693445674,-236.10279465,0.000199,2]
[348637137,1736693445684,-624.8828118,0.00019973,2]
[348637138,1736693445693,-271.10575373,0.00019973,2]
[348637139,1736693445702,-500.0,0.00019973,2]
[348637140,1736693445712,-500.0,0.00019973,2]
[348637141,1736693445721,-500.0,0.00019973,2]
[348637142,1736693445731,-500.0,0.00019973,2]
[348637143,1736693445740,-500.0,0.00019973,2]
[348637144,1736693445750,-1783.87423624,0.0002,5]
[348637145,1736693445759,-1068.11072763,0.0002,5]
[348637146,1736693445769,-569787.10353105,0.0002,5]
[348637147,1736693445779,-1035.81,0.0002,2]
[348637148,1736693445788,-3525.66902379,0.0002,2]
[348637149,1736693445797,-153648.79285847,0.0002,5]
[348637150,1736693445896,-7344.48897989,0.0002,5]
[348637151,1736693445908,-36665.99316877,0.0002,5]
[348637152,1736693446034,-500.0,0.00019178,2]
[348637153,1736693446044,-500.0,0.00019452,3]
[348637154,1736693446053,-500.0,0.00019726,3]
[348637155,1736693446062,-16067.7280742,0.0002,5]
[348637156,1736693446074,-7598.79064567,0.0002,5]
[348637157,1736693446085,-1171.94,0.0002,5]
[348637159,1736693446097,-2839.22712791,0.0002,5]
[348637191,1736693446655,-65912.92572412,0.0002,5]
[348637194,1736693446680,-372.21519123,0.0002,5]
[348637199,1736693867115,220.584572,0.00013973,2]
[348637207,1736694402331,1000.0,0.00015052,2]
[348637209,1736694414259,979.0,0.00015052,2]
[348637210,1736694449268,1000.0,0.00015052,2]
[348637212,1736694474110,456.92,0.0001505,2]
[348637234,1736694632038,-436.54693055,0.00016,2]
[348637235,1736694632048,-159.23212888,0.00016655,2]
[348637237,1736694632125,-4840.76787112,0.00016655,2]
[348637239,1736694632135,-9531.2784618,0.00016674,2]
[348637241,1736694632145,-193.830227,0.00016924,2]
[348637242,1736694632155,-3773.3064249,0.00016973,2]
[348637243,1736694632164,-300.0,0.00017678,2]
[348637244,1736694632174,-24900.0,0.00017679,2]
[348637245,1736694632184,-1420.7159378,0.00018367,2]
[348637246,1736694632195,-247.254938,0.00018563,2]
[348637247,1736694632204,-150.0,0.000189,2]
[348637248,1736694632214,-479.245,0.00019,2]
[348637249,1736694632224,-394.0,0.00019014,2]
[348637250,1736694632233,-166.37604484,0.00019078,2]
[348637251,1736694632244,-500.0,0.00019177,2]
[348637252,1736694632254,-500.0,0.00019177,2]
[348637253,1736694632264,-500.0,0.00019177,2]
[348637254,1736694632274,-500.0,0.00019177,2]
[348637255,1736694632285,-500.0,0.00019177,2]
[348637256,1736694632297,-290.70364027,0.00019177,2]
[348637257,1736694632307,-239.87818199,0.00019177,2]
[348637258,1736694632316,-616.39089094,0.00019177,2]
[348637259,1736694632327,-500.0,0.00019177,2]
[348637260,1736694632337,-503.25120897,0.00019177,2]
[348637261,1736694632346,-500.0,0.00019178,2]
[348637262,1736694632356,-500.0,0.00019178,2]
[348637263,1736694632365,-500.0,0.00019178,2]
[348637264,1736694632375,-500.0,0.00019178,2]
[348637265,1736694632384,-500.0,0.00019178,2]
[348637266,1736694632394,-500.0,0.00019178,2]
[348637267,1736694632406,-500.0,0.00019178,2]
[348637268,1736694632415,-500.0,0.00019178,2]
[348637269,1736694632425,-500.0,0.00019178,2]
[348637270,1736694632435,-500.0,0.00019178,2]
[348637271,1736694632445,-500.0,0.00019178,2]
[348637272,1736694632455,-500.0,0.00019178,2]
[348637273,1736694632465,-500.0,0.00019178,2]
[348637274,1736694632474,-581.81,0.00019178,2]
[348637275,1736694632485,-500.0,0.00019178,2]
[348637276,1736694632496,-500.0,0.00019178,2]
[348637277,1736694632508,-165.73787587,0.00019178,2]
[348637278,1736694632518,-500.0,0.00019178,2]
[348637279,1736694632527,-500.51467281,0.00019178,2]
[348637280,1736694632537,-500.71929054,0.00019178,2]
[348637281,1736694632547,-500.0,0.00019178,2]
[348637282,1736694632556,-500.0,0.00019178,2]
[348637283,1736694632566,-500.0,0.00019178,2]
[348637284,1736694632575,-500.0,0.00019178,2]
[348637285,1736694632586,-500.0,0.00019178,2]
[348637286,1736694632595,-500.0,0.00019178,2]
[348637287,1736694632608,-500.0,0.00019178,2]
[348637288,1736694632618,-500.78567531,0.00019178,2]
[348637289,1736694632627,-199.23849831,0.00019178,2]
[348637290,1736694632637,-500.0,0.00019178,2]
[348637291,1736694632647,-500.0,0.00019178,2]
[348637292,1736694632657,-501.0356338,0.00019178,2]
[348637293,1736694632667,-500.0,0.00019178,2]